Cogmind - Beta 12 X6 @@@ ROGUE MODE // 2023.01.31 @ 21:17:56 Player: leiavoia Result: Destroyed self via exploding Z-Power Performance ------------- Evolutions (3) 1500 Regions Visited (14) 2800 Robots Destroyed (412) 2060 Value Destroyed (13946) 13946 Prototype IDs (7) 140 Alien Tech Used (0) 0 Bonus (7645) 7645 TOTAL SCORE: 28091 Bonus ------- Triggered High Security 1000 High Alert Combat Kills 7173 Follower Combat Kills 648 Entered Garrisons 200 Met Imprinter 300 Was Imprinted 300 Friendly Fire -1976 Cogmind --------- Core Integrity 0/700 Matter 18/300 Energy 312/315 System Corruption 6% Temperature Cool (0) Movement Walking (140) Location -7/Deep Caves Parts ------- > --- POWER (1) -------- Neutrino Core > --- PROPULSION (5) --- Makeshift Leg Makeshift Leg Makeshift Leg Xenon Bombardment Thruster > --- UTILITY (5) ------ Advanced Heat Sink Experimental Sensor Array > --- WEAPON (2) ------- Long-range Missile Launcher Power Maul > --- INVENTORY (5) ---- Deuterium Engine Improved Flight Unit Improved VTOL Module Phase Cannon Peak State ------------ > --- POWER ------------ Enhanced Nuclear Core > --- PROPULSION ------- Armored Treads Armored Huge Wheel Armored Huge Wheel > --- UTILITY ---------- Advanced Heat Sink Cargo Storage Unit Experimental Sensor Array Hardened Medium Armor Plating > --- WEAPON ----------- Gauss Cannon Enhanced Gauss Cannon > --- INVENTORY -------- Enhanced Nuclear Core Light Treads Light Treads Heavy Treads Improved Flight Unit Improved VTOL Module Xenon Bombardment Thruster Improved Cooling System Huge Storage Unit High-capacity Battery High-capacity Matter Pod High-capacity Matter Pod Terrain Scanner Encrypted Comm Array Advanced Targeting Computer Hardened Light Armor Plating Hardened Heavy Armor Plating Improved Medium Armor Plating Long-range Tractor Beam Plasma Cannon Advanced Assault Cannon Gauss Cannon Heavy Rocket Launcher Heavy Rocket Launcher Long-range Missile Launcher Long-range Missile Launcher Long-range Missile Launcher Power Maul [Rating: 63] Favorites ----------- Power Enhanced Nuclear Core Engine Improved Ion Engine Power Core Enhanced Nuclear Core Propulsion Light Treads Treads Light Treads Leg Makeshift Leg Wheel Armored Huge Wheel Hover Unit Gravmag System Flight Unit Xenon Bombardment Thruster Utility Huge Storage Unit Device Experimental Sensor Array Storage Huge Storage Unit Processor Advanced Signal Interpreter Hackware System Shield Protection Hardened Light Armor Plating Weapon Gauss Cannon Energy Cannon Plasma Cannon Ballistic Gun Heavy Assault Rifle Ballistic Cannon Gauss Cannon Launcher Long-range Missile Launcher Impact Weapon Power Maul Slashing Weapon Axe Build | -11 -10 -10 -9 -9 -9 -8 -8 -8 -8 -7 -7 -7 -7 -7 ------- Run | Jun Mat Min Mat Min Exi Min Mat Gar Mat Fac Low Low Zio Dee Slots Evolved 6 | . . . 2 . . . 2 . . 2 . . . . Power . | . . . . . . . . . . . . . . . Propulsion 3 | . . . 1 . . . 1 . . 1 . . . . Utility 3 | . . . 1 . . . 1 . . 1 . . . . Weapon . | . . . . . . . . . . . . . . . Parts Attached 398 | . 18 9 42 6 . . 19 44 20 123 31 22 62 2 Power 23 | . 2 1 6 1 . . . 2 1 6 1 . 3 . Engine 16 | . 2 1 6 1 . . . 1 1 2 . . 2 . Core 7 | . . . . . . . . 1 . 4 1 . 1 . Reactor . | . . . . . . . . . . . . . . . Propulsion 100 | . 8 3 14 3 . . 2 16 6 23 9 1 15 . Treads 48 | . . 2 14 3 . . 2 9 4 7 6 1 . . Leg 23 | . 8 1 . . . . . 1 . . . . 13 . Wheel 14 | . . . . . . . . 5 1 5 3 . . . Hover 1 | . . . . . . . . . . . . . 1 . Flight 14 | . . . . . . . . 1 1 11 . . 1 . Utility 136 | . 4 2 10 2 . . 9 8 5 51 10 8 26 1 Device 79 | . 1 1 4 1 . . 7 2 2 29 8 4 20 . Storage 8 | . 1 . 4 . . . . . . 2 . . 1 . Processor 5 | . 1 . . . . . . . . 4 . . . . Hackware 4 | . . . . . . . . . 1 3 . . . . Protection 40 | . 1 1 2 1 . . 2 6 2 13 2 4 5 1 Artifact . | . . . . . . . . . . . . . . . Weapon 139 | . 4 3 12 . . . 8 18 8 43 11 13 18 1 Energy Gun . | . . . . . . . . . . . . . . . Energy Cannon 17 | . 1 1 . . . . . 3 . 5 2 1 4 . Ballistic Gun 11 | . 2 1 5 . . . . 3 . . . . . . Ballistic Cannon 58 | . 1 1 5 . . . 5 7 5 17 4 6 7 . Launcher 42 | . . . 2 . . . 3 4 3 14 5 6 4 1 Special Weapon . | . . . . . . . . . . . . . . . Impact Weapon 10 | . . . . . . . . 1 . 6 . . 3 . Slashing Weapon 1 | . . . . . . . . . . 1 . . . . Piercing Weapon . | . . . . . . . . . . . . . . . Special Melee Weapon . | . . . . . . . . . . . . . . . Unidentified Prototypes 6 | . . . 1 . . . . 1 1 2 . . . 1 Parts Lost 60 | . . 4 2 . . . 1 10 3 10 2 3 23 2 Power 7 | . . . . . . . . 1 . 2 1 . 3 . Propulsion 22 | . . 1 . . . . . 5 1 5 1 1 7 1 Utility 22 | . . 2 . . . . 1 3 2 2 . 2 9 1 Weapon 9 | . . 1 2 . . . . 1 . 1 . . 4 . Highest Loss Streak 8 | . . 3 1 . . . 1 8 3 3 2 2 6 2 To Critical Strikes 2 | . . . . . . . . . . . . . 2 . Average Slot Usage (%) 88 | . 98 96 99 99 100 100 93 97 99 87 78 79 77 69 Engine 5 | . 14 14 10 11 11 11 9 7 9 2 . . . . Core 3 | . . . . . . . . 1 . 4 7 7 6 7 Treads 22 | . . 11 32 33 33 33 36 27 18 8 12 23 25 . Leg 3 | . 28 16 . . . . . . . . . . 5 30 Wheel 2 | . . . . . . . . 7 18 3 11 6 . . Flight 3 | . . . . . . . . . . 21 . . . 7 Device 11 | . 2 3 13 10 11 11 16 12 17 12 13 13 10 15 Storage 8 | . 14 14 11 11 11 11 9 9 9 6 7 7 6 . Protection 8 | . 9 7 8 11 11 11 10 12 9 4 8 4 9 . Energy Cannon 1 | . 1 3 . . . . . 3 . . 3 . 1 . Ballistic Gun 2 | . 18 12 6 . . . . 2 . . . . . . Ballistic Cannon 10 | . 8 11 15 22 22 22 11 8 16 4 10 12 5 . Naked Turns . | . . . . . . . . . . . . . . . Heaviest Build 183 | 12 34 38 104 107 107 107 112 115 124 183 180 183 183 21 Greatest Support 130 | 20 20 40 60 60 60 60 80 80 24 130 68 91 95 80 Greatest Overweight (x) 17 | . 1 1 1 1 1 1 1 8 9 10 6 6 17 . Average Overweight (x) 1 | . . . . 1 1 1 1 2 4 . 3 5 1 . Largest Inventory Capacity 30 | 8 15 15 25 25 25 25 25 25 25 30 30 30 30 5 Average Capacity 23 | 8 9 15 19 25 25 25 25 25 25 17 30 30 26 5 Most Carried 30 | 7 15 15 25 25 25 25 25 25 25 30 30 30 30 5 Average Carried 22 | 6 9 14 18 24 24 25 24 24 24 16 29 29 26 4 Final Capacity 30 | 8 15 15 25 25 25 25 25 25 25 30 30 30 5 5 Final Carried 30 | 7 15 15 25 25 25 25 25 25 25 30 28 30 5 4 Class Distribution -------------------- 50% | Scavenger-Mutant 24% | Hauler-Mutant 17% | Mutant 4% | Sprinter Dominant Class ---------------- Mutant | -10/Materials Mutant | -10/Mines Mutant | -9/Materials Mutant | -9/Mines Scavenger-Mutant | -9/Exiles Scavenger-Mutant | -8/Mines Scavenger-Mutant | -8/Materials Scavenger-Mutant | -8/Garrison Scavenger-Mutant | -8/Materials Sprinter | -7/Factory Hauler-Mutant | -7/Lower Caves Hauler-Mutant | -7/Lower Caves Scavenger-Mutant | -7/Zion Scavenger-Mutant | -7/Deep Caves Resources | -11 -10 -10 -9 -9 -9 -8 -8 -8 -8 -7 -7 -7 -7 -7 ----------- Run | Jun Mat Min Mat Min Exi Min Mat Gar Mat Fac Low Low Zio Dee Matter Collected 13496 | 212 675 313 1715 90 . 100 878 1207 761 4237 1218 575 1472 43 Remotely 2768 | . . . . . . . 185 . 228 1873 222 . 260 . Salvage Created 11761 | 80 881 509 1866 8 . 110 909 1685 835 3497 466 167 705 43 Parts 650 | 4 53 41 115 4 . 5 49 72 40 186 17 8 54 2 Haulers Intercepted 11 | . 1 . 6 . . . 2 . 2 . . . . . Recyclers Shooed 2 | . . . 1 1 . . . . . . . . . . Parts Field Recycled . | . . . . . . . . . . . . . . . Retrieved Matter . | . . . . . . . . . . . . . . . Parts Self-Destructed 23 | . . . . . . . . . . . 15 6 2 . Prevented . | . . . . . . . . . . . . . . . Kills | -11 -10 -10 -9 -9 -9 -8 -8 -8 -8 -7 -7 -7 -7 -7 ------- Run | Jun Mat Min Mat Min Exi Min Mat Gar Mat Fac Low Low Zio Dee Combat Hostiles Destroyed 318 | . 23 12 40 . . 3 22 37 19 127 20 9 6 . Guns 38 | . 18 5 15 . . . . . . . . . . . Cannons 105 | . 5 7 22 . . 3 12 18 12 22 1 . 3 . AOE 175 | . . . 3 . . . 10 19 7 105 19 9 3 . Classes Destroyed 24 | 2 5 2 4 . . . 1 2 1 2 1 1 3 . Worker 8 | . 1 1 3 . . . 1 . 1 1 . . . . Builder 12 | . . 3 1 1 . . . . 1 6 . . . . Tunneler 6 | 1 . 2 1 . . 1 1 . . . . . . . Hauler 11 | . 1 . 6 . . . 2 . 2 . . . . . Recycler 20 | 1 1 3 6 . . . 4 . 1 4 . . . . Carrier 1 | . . . . . . . . . . 1 . . . . Mechanic 12 | . . . . . . . . 1 . 11 . . . . Operator 4 | . . . 2 . . . . . 1 1 . . . . Watcher 13 | . 2 . 2 . . . 2 . 1 6 . . . . Swarmer 65 | . 6 8 6 . . . 6 9 2 14 9 5 . . Grunt 142 | . 17 2 22 . . 3 11 18 9 51 6 3 . . Brawler 15 | . . . . . . . 1 . 2 10 2 . . . Duelist 11 | . . . 1 . . . . 4 . 6 . . . . Protector 11 | . . . 1 . . . . . . 10 . . . . Sentry 33 | . . . 10 . . . 4 7 5 3 3 1 . . Hunter 19 | . . . . . . . . . . 19 . . . . Programmer 15 | . . . . . . . . 1 . 14 . . . . Heavy 1 | . . . . . . . . . 1 . . . . . Enhanced Grunt 1 | . . . . . . . . . . . . . 1 . Zionite 49 | . . . . . . . . . . . . . 49 . Z-Technician 5 | . . . . . . . . . . . . . . 5 Samaritan 2 | . . . . . . . . . . . 2 . . . Tinkerer 1 | . . . . . . . . . . . . . 1 . Assembled 2 | . . 2 . . . . . . . . . . . . Marauder 2 | . . . . . . . . . . . . . 2 . Mutant 5 | . . . . . . . . . . . . 1 4 . Best Kill Streak 26 | 2 4 4 8 1 . 2 5 5 7 26 14 3 8 5 Combat Bots Only 23 | . 4 3 6 . . 2 4 5 6 23 14 3 3 . Max Kills in Single Turn 7 | 1 2 2 3 1 . 1 4 3 3 7 4 3 2 1 Gunslinging 1 | . . . 1 . . . . . . . . . . . Exploded 6 | . . . 2 . . . 3 3 3 6 4 3 2 . Melee . | . . . . . . . . . . . . . . . Uniques/NPCs Destroyed 1 | . . . . . . . . . . . . . 1 . Imprinter (-7/Zion) Combat | -11 -10 -10 -9 -9 -9 -8 -8 -8 -8 -7 -7 -7 -7 -7 -------- Run | Jun Mat Min Mat Min Exi Min Mat Gar Mat Fac Low Low Zio Dee Damage Taken 14860 | . 696 680 1202 . . 147 758 2120 881 3943 670 211 3172 380 Core 1631 | . 148 48 157 . . 13 47 208 136 398 37 . 249 190 Absorbed by Shields 1277 | . . . 35 . . 55 289 199 174 199 . . 326 . Reduced by Siege Mode 170 | . . . . . . . . . . 167 3 . . . Regen/Repaired (Parts) 279 | . . . 151 . . . . . . 128 . . . . Core Remaining (%) 51 | 100 . 21 . . . 57 . . 28 . . . . . Volleys Fired 967 | 6 97 53 128 3 . 10 63 145 48 170 36 18 189 1 Largest 2 | 2 2 2 2 2 . 2 2 2 2 2 2 2 2 1 Hottest 165 | 40 58 95 88 88 . 88 88 114 96 128 105 96 165 43 Shots Fired 1548 | 12 194 106 250 6 . 20 90 189 90 264 53 30 243 1 Gun 314 | 12 160 40 94 . . . . 8 . . . . . . Cannon 1015 | . 34 66 150 6 . 20 84 158 84 172 30 12 199 . Launcher 219 | . . . 6 . . . 6 23 6 92 23 18 44 1 Special . | . . . . . . . . . . . . . . . Kinetic 1108 | 12 194 86 244 6 . 20 84 98 84 152 27 9 92 . Thermal 221 | . . 20 . . . . . 68 . 20 3 3 107 . Explosive 219 | . . . 6 . . . 6 23 6 92 23 18 44 1 Electromagnetic . | . . . . . . . . . . . . . . . Robot Hit Streak 24 | 7 24 7 24 4 . 6 12 22 14 15 14 19 15 . Robot Miss Streak 7 | 1 6 6 5 1 . 3 7 5 5 5 2 4 4 . Penetration Max 1 | . . . . . . . . . 1 1 . . . . Secondary Targets 1 | . . . 1 . . . . . . . . . . . Max Gunslinging Chain 1 | . . . 1 . . . . . . . . . . . Shots Hit Robots 899 | 8 121 46 156 4 . 12 65 113 55 138 25 12 139 5 Core Hits 765 | 4 48 23 74 . . 6 48 80 31 316 43 18 72 2 Critical Kills 7 | . 3 2 . . . . . 1 . . . . 1 . Critical Parts Destroyed 10 | . . 3 . . . . . 1 . 3 . . 3 . Critical Strikes 60 | . 4 5 3 1 . 1 4 5 11 11 3 . 12 . Meltdown 1 | . . . . . . . . . . . . . 1 . Destroy 12 | . 3 5 . . . . . . . . . . 4 . Blast 42 | . 1 . 3 1 . 1 4 3 11 8 3 . 7 . Smash 5 | . . . . . . . . 2 . 3 . . . . Melee Attacks 90 | . . . . . . . . 7 . 64 . . 14 5 Impact 83 | . . . . . . . . 7 . 57 . . 14 5 Slashing 7 | . . . . . . . . . . 7 . . . . Piercing . | . . . . . . . . . . . . . . . Sneak Attacks 7 | . . . . . . . . . . 2 . . . 5 Combat Hostiles . | . . . . . . . . . . . . . . . Follow-up Attacks . | . . . . . . . . . . . . . . . Damage Inflicted 47422 | 67 1229 789 3872 105 . 283 2913 5265 2068 19269 3065 1232 6730 535 Guns 2571 | 67 924 247 1175 . . . . 158 . . . . . . Cannons 17077 | . 302 542 2245 105 . 283 2223 2736 1552 2756 600 139 3594 . Explosions 26358 | . . . 398 . . . 690 2233 488 15937 2465 1093 3054 . Melee 1283 | . . . . . . . . 138 . 566 . . 44 535 Ramming 133 | . 3 . 54 . . . . . 28 10 . . 38 . Kinetic 16095 | 67 1226 596 3420 105 . 283 2223 1745 1552 2485 600 59 1734 . Thermal 4159 | . . 193 . . . . . 1149 . 271 606 80 1860 . Explosive 25752 | . . . 398 . . . 690 2233 488 15937 1859 1093 3054 . Electromagnetic . | . . . . . . . . . . . . . . . Impact 1283 | . . . . . . . . 138 . 566 . . 44 535 Slashing . | . . . . . . . . . . . . . . . Piercing . | . . . . . . . . . . . . . . . Highest Corruption 12 | . . 8 . . . . . 1 1 12 7 7 7 6 Average Corruption 4 | . . 7 . . . . . 1 1 3 7 7 2 6 Corruption Purged 5 | . . . . . . . . . . 5 . . . . Corruption Blocked . | . . . . . . . . . . . . . . . Effects 258 | . . 22 . . . . . 2 9 67 53 59 34 12 Message Errors 62 | . . 4 . . . . . . 2 11 15 11 13 6 Matter Fused 65 | . . 8 . . . . . . 4 20 15 12 6 . Heat Flow Errors 33 | . . 2 . . . . . 1 2 6 6 10 5 1 Energy Discharges 31 | . . 5 . . . . . 1 . 8 7 4 2 4 Data Loss (minor) 31 | . . 1 . . . . . . . 8 2 15 4 1 Data Loss (major) 11 | . . . . . . . . . 1 2 5 1 2 . Misfires 12 | . . 2 . . . . . . . 5 . 4 1 . Alerts 6 | . . . . . . . . . . 3 1 2 . . Weapon Failures 7 | . . . . . . . . . . 4 2 . 1 . Overload Shots . | . . . . . . . . . . . . . . . Overflow Damage 2060 | . . 12 12 20 . 10 136 176 17 782 265 74 262 294 Projectiles 448 | . . 12 9 20 . 10 136 64 5 89 12 35 56 . Explosions 970 | . . . . . . . . 39 12 360 253 39 177 90 Melee 642 | . . . 3 . . . . 73 . 333 . . 29 204 Knockbacks 85 | . 4 2 13 1 . 3 7 8 7 23 2 . 14 1 Impact 4 | . . . . . . . . . . 2 . . 1 1 Kinetic 77 | . 4 2 12 1 . 3 7 8 7 18 2 . 13 . Secondary 4 | . . . 1 . . . . . . 3 . . . . Self-Inflicted Damage 1428 | . . . . . . . 19 344 38 66 202 63 316 380 Shots 32 | . . . . . . . 1 13 1 3 5 1 7 1 Rammed 5 | . . . 2 . . . . . 1 2 . . . . Targets Rammed 14 | . 1 1 5 . . . . . 1 2 . . 4 . Kicked 6 | . 1 1 . . . . . . . . . . 4 . Crushed 3 | . . . 3 . . . . . . . . . . . Highest Temperature 522 | . 132 321 360 72 . 153 377 343 331 522 247 278 499 117 Average Temperature 87 | . 24 90 92 32 . 60 188 156 178 64 99 85 107 65 Received Heat Transfer 3446 | . 339 75 513 . . 45 295 802 216 786 69 54 252 . Effects 16 | . . . 3 . . . . 1 1 7 . . 4 . Shutdowns 2 | . . . . . . . . . . 1 . . 1 . Energy Bleed 3 | . . . 1 . . . . . 1 1 . . . . Interference 9 | . . . 2 . . . . 1 . 3 . . 3 . Short Circuit 1 | . . . . . . . . . . 1 . . . . Damage (core) 1 | . . . . . . . . . . 1 . . . . Siege Activations 3 | . . . . . . . . . . 2 1 . . . Total Turns 570 | . . . . . . . . . . 568 2 . . . Longest Duration 466 | . . . . . . . . . . 466 2 . . . Robots Corrupted . | . . . . . . . . . . . . . . . Combat Hostiles . | . . . . . . . . . . . . . . . Parts Fried 15 | . . . . . . . . . . 12 . . . 3 Impact Corruptions 26 | . . . 1 . . . . 1 . 14 . . 1 9 Robots Melted 1 | . . . . . . . . . . . . . 1 . Combat Hostiles . | . . . . . . . . . . . . . . . Parts Melted 7 | . . . . . . . . . . . . . 7 . Heat Transferred 6173 | . . 407 . . . . . 1665 . 500 480 150 2971 . Parts Sabotaged . | . . . . . . . . . . . . . . . Parts Stolen . | . . . . . . . . . . . . . . . Parts Stripped . | . . . . . . . . . . . . . . . Power Chain Reactions . | . . . . . . . . . . . . . . . Missiles Intercepted . | . . . . . . . . . . . . . . . Alert | -11 -10 -10 -9 -9 -9 -8 -8 -8 -8 -7 -7 -7 -7 -7 ------- Run | Jun Mat Min Mat Min Exi Min Mat Gar Mat Fac Low Low Zio Dee Peak Influence 3971 | 10 408 255 891 362 . 121 501 2560 1748 3971 . . . . Initial 1248 | . 6 115 19 347 . . . 183 1248 1100 . . . . Average 835 | 5 231 111 464 150 . 31 218 1238 1455 1707 . . . . Maximum Alert Level 5 | . 2 1 3 1 . . 2 5 5 5 . . . . Low Security (%) 27 | 100 32 77 17 72 . 100 35 1 . . . . . . Level 1 15 | . 63 22 13 27 . . 55 5 . . . . . . Level 2 11 | . 3 . 56 . . . 8 9 . . . . . . Level 3 12 | . . . 12 . . . . 36 . 16 . . . . Level 4 21 | . . . . . . . . 17 89 56 . . . . Level 5 5 | . . . . . . . . 28 . . . . . . High Security 6 | . . . . . . . . . 9 26 . . . . Max Security . | . . . . . . . . . . . . . . . Sterilizations 1 | . . . . . . . . . . 1 . . . . Squads Dispatched 71 | . 7 . 9 1 . . 7 1 3 43 . . . . Investigation 23 | . 5 . 4 . . . 1 . 1 12 . . . . Extermination 3 | . . . . . . . . . . 3 . . . . Reinforcement 12 | . 2 . 4 . . . 3 . 2 1 . . . . Assault 30 | . . . 1 1 . . . 1 . 27 . . . . Garrison 3 | . . . . . . . 3 . . . . . . . Intercept . | . . . . . . . . . . . . . . . Searches Triggered . | . . . . . . . . . . . . . . . Construction Impeded 4 | . . . 1 . . . 1 . 1 1 . . . . Haulers Reinforced . | . . . . . . . . . . . . . . . Active Scanning Responses . | . . . . . . . . . . . . . . . Cargo Convoy Interrupts . | . . . . . . . . . . . . . . . Stealth | -11 -10 -10 -9 -9 -9 -8 -8 -8 -8 -7 -7 -7 -7 -7 --------- Run | Jun Mat Min Mat Min Exi Min Mat Gar Mat Fac Low Low Zio Dee Distress Signals 19 | . . . 4 1 . . 7 . 3 4 . . . . Communications Jammed . | . . . . . . . . . . . . . . . Distress Signals . | . . . . . . . . . . . . . . . Times Spotted 478 | . 35 19 59 1 . 7 37 47 24 173 11 5 60 . Peak Tracking Total 18 | . 4 13 7 . . 3 6 7 4 18 10 3 8 . Tactical Retreats 26 | . 1 4 5 . . . 2 . 1 12 . . 1 . Traps | -11 -10 -10 -9 -9 -9 -8 -8 -8 -8 -7 -7 -7 -7 -7 ------- Run | Jun Mat Min Mat Min Exi Min Mat Gar Mat Fac Low Low Zio Dee Traps Triggered 17 | . 2 . . . . . 1 12 . 2 . . . . Indirectly . | . . . . . . . . . . . . . . . Trap Hack Attempts . | . . . . . . . . . . . . . . . Triggered . | . . . . . . . . . . . . . . . Disarmed . | . . . . . . . . . . . . . . . Reprogrammed . | . . . . . . . . . . . . . . . Reused . | . . . . . . . . . . . . . . . Traps Extracted . | . . . . . . . . . . . . . . . Installed . | . . . . . . . . . . . . . . . Triggered . | . . . . . . . . . . . . . . . Machines | -11 -10 -10 -9 -9 -9 -8 -8 -8 -8 -7 -7 -7 -7 -7 ---------- Run | Jun Mat Min Mat Min Exi Min Mat Gar Mat Fac Low Low Zio Dee Machines Disabled 35 | . . 1 2 1 . . 3 5 4 10 4 . 3 2 Max in Single Turn 2 | . . 1 1 1 . . 1 1 1 2 2 . 2 1 Garrison Access 4 | . . . . . . . . . . 4 . . . . Garrison Relay 2 | . . . . . . . . 2 . . . . . . Machines Repaired . | . . . . . . . . . . . . . . . Machines Sabotaged . | . . . . . . . . . . . . . . . Overloaded Fab Kills . | . . . . . . . . . . . . . . . Hacking | -11 -10 -10 -9 -9 -9 -8 -8 -8 -8 -7 -7 -7 -7 -7 --------- Run | Jun Mat Min Mat Min Exi Min Mat Gar Mat Fac Low Low Zio Dee Machines Accessed 78 | . 7 . 14 1 4 . 3 5 8 34 1 1 . . Terminals 47 | . 5 . 10 1 . . 2 5 6 17 1 . . . Fabricators 6 | . . . . . . . . . . 6 . . . . Repair Stations 3 | . . . 1 . . . . . 1 1 . . . . Recycling Units 9 | . 2 . 2 . . . . . . 5 . . . . Scanalyzers 3 | . . . 1 . . . . . 1 1 . . . . Garrison Access 5 | . . . . . . . 1 . . 4 . . . . Total Hacks 193 | . 18 . 35 2 4 . 4 9 24 90 5 2 . . Successful 92 | . 7 . 13 1 4 . 3 3 8 46 5 2 . . Failed 100 | . 10 . 22 1 . . 1 6 16 44 . . . . Catastrophic 18 | . 2 . 4 . . . . 1 3 8 . . . . Database Lockouts 1 | . 1 . . . . . . . . . . . . . Manual 73 | . 13 . 17 2 . . . 2 11 27 . . 1 . Terminals 122 | . 14 . 23 2 . . 3 9 19 47 5 . . . Fabricators 17 | . . . . . . . . . . 17 . . . . Repair Stations 9 | . . . 5 . . . . . 1 3 . . . . Recycling Units 19 | . 4 . 5 . . . . . . 10 . . . . Scanalyzers 10 | . . . 2 . . . . . 4 4 . . . . Garrison Access 10 | . . . . . . . 1 . . 9 . . . . Terminal Hacks 42 | . 3 . 4 1 4 . 2 3 5 13 5 2 . . Record 11 | . . . . . 4 . . . . . 5 2 . . Part Schematic 2 | . . . . 1 . . . . . 1 . . . . Robot Analysis 7 | . 2 . 1 . . . . . 4 . . . . . Open Door 1 | . . . . . . . . 1 . . . . . . Branch Access Points 1 | . . . . . . . . . . 1 . . . . Emergency Access Points 1 | . . . . . . . . 1 . . . . . . Terminal Index 3 | . 1 . 1 . . . . . . 1 . . . . Alert Level 2 | . . . . . . . . . 1 1 . . . . Unreport Threat 5 | . . . . . . . 1 . . 4 . . . . Locate Traps 2 | . . . . . . . . . . 2 . . . . Maintenance Status 1 | . . . . . . . . . . 1 . . . . Recall Investigation 1 | . . . . . . . . . . 1 . . . . Hauler Manifests 3 | . . . 1 . . . 1 . . 1 . . . . Zone Layout 1 | . . . 1 . . . . . . . . . . . Security Stations 1 | . . . . . . . . 1 . . . . . . Fabricator Hacks 12 | . . . . . . . . . . 12 . . . . Network Status 1 | . . . . . . . . . . 1 . . . . Load Schematic 6 | . . . . . . . . . . 6 . . . . Build 5 | . . . . . . . . . . 5 . . . . Repair Station Hacks 6 | . . . 4 . . . . . . 2 . . . . Scan Component 3 | . . . 2 . . . . . . 1 . . . . Repair 3 | . . . 2 . . . . . . 1 . . . . Recycling Unit Hacks 5 | . 2 . 1 . . . . . . 2 . . . . Retrieve Components 5 | . 2 . 1 . . . . . . 2 . . . . Scanalyzer 6 | . . . 2 . . . . . 2 2 . . . . Insert Component 3 | . . . 1 . . . . . 1 1 . . . . Analyze 3 | . . . 1 . . . . . 1 1 . . . . Garrison Access Hacks 5 | . . . . . . . 1 . . 4 . . . . Unlock Access 1 | . . . . . . . 1 . . . . . . . Seal Access 4 | . . . . . . . . . . 4 . . . . Unauthorized Hacks 16 | . 2 . 2 . . . . . 1 11 . . . . Terminals 12 | . . . 1 . . . . . 1 10 . . . . Assimilate 4 | . . . . . . . . . . 4 . . . . Botnet 8 | . . . 1 . . . . . 1 6 . . . . Fabricators . | . . . . . . . . . . . . . . . Repair Stations . | . . . . . . . . . . . . . . . Recycling Units 4 | . 2 . 1 . . . . . . 1 . . . . Mask 1 | . . . . . . . . . . 1 . . . . Tunnel 3 | . 2 . 1 . . . . . . . . . . . Scanalyzers . | . . . . . . . . . . . . . . . Garrison Access . | . . . . . . . . . . . . . . . Data Cores Recovered 2 | . . . . . . . . . 1 1 . . . . Used . | . . . . . . . . . . . . . . . Hacking Detections 64 | . 6 . 13 1 . . 1 3 8 31 1 . . . Full Trace Events 22 | . 2 . 4 . . . . 2 3 11 . . . . Feedback Events . | . . . . . . . . . . . . . . . Feedback Blocked . | . . . . . . . . . . . . . . . Robot Schematics Acquired 4 | . . . . . . . . . . . . . 4 . Robots Built 2 | . . . . . . . . . . 2 . . . . Authchips . | . . . . . . . . . . . . . . . Time 116 | . . . . . . . . . . 116 . . . . Total Robot Build Rating 6 | . . . . . . . . . . 6 . . . . Part Schematics Acquired 16 | . . . 1 1 . . . . . 1 . . 13 . Parts Built 4 | . . . . . . . . . . 4 . . . . Authchips . | . . . . . . . . . . . . . . . Time 288 | . . . . . . . . . . 288 . . . . Total Part Build Rating 16 | . . . . . . . . . . 16 . . . . Parts Repaired 3 | . . . 2 . . . . . . 1 . . . . Time 74 | . . . 52 . . . . . . 22 . . . . Parts Recycled . | . . . . . . . . . . . . . . . Recycled Matter . | . . . . . . . . . . . . . . . Retrieved Matter . | . . . . . . . . . . . . . . . Retrieved Components 36 | . 20 . 10 . . . . . . 6 . . . . Parts Scanalyzed 2 | . . . 1 . . . . . 1 . . . . . Part Schematics Acquired 1 | . . . 1 . . . . . . . . . . . Parts Damaged . | . . . . . . . . . . . . . . . Bothacking | -11 -10 -10 -9 -9 -9 -8 -8 -8 -8 -7 -7 -7 -7 -7 ------------ Run | Jun Mat Min Mat Min Exi Min Mat Gar Mat Fac Low Low Zio Dee Used RIF Installer . | . . . . . . . . . . . . . . . Robots Hacked . | . . . . . . . . . . . . . . . Non-combat . | . . . . . . . . . . . . . . . Combat . | . . . . . . . . . . . . . . . Robot Hacks Applied . | . . . . . . . . . . . . . . . Relay Couplers Released 8 | . . . . . . . . 8 . . . . . . Machine Destruction 8 | . . . . . . . . 8 . . . . . . Fabnet Peak Effective % . | . . . . . . . . . . . . . . . Robots Rewired 8 | . . . . . . . . 8 . . . . . . Allies Hacked . | . . . . . . . . . . . . . . . Hacks Repelled . | . . . . . . . . . . . . . . . Allies | -11 -10 -10 -9 -9 -9 -8 -8 -8 -8 -7 -7 -7 -7 -7 -------- Run | Jun Mat Min Mat Min Exi Min Mat Gar Mat Fac Low Low Zio Dee Total Allies 23 | . . . . 4 . . . 8 . 5 . . 6 . Largest Group 6 | . . . . 4 4 3 2 3 . 3 . . 6 . Highest-Rated Group 345 | . . . . 71 71 63 32 64 . 74 . . 345 . Highest-Rated Ally 96 | . . . . 31 31 31 16 39 . 26 . . 96 . Total Orders 2 | . . . . . . . . . . 2 . . . . STAY 1 | . . . . . . . . . . 1 . . . . FOLLOW 1 | . . . . . . . . . . 1 . . . . Ally Attacks 175 | . . . . 1 . 37 19 36 . 4 . . 78 . Total Damage 4308 | . . . . 15 . 554 203 844 . 160 . . 2532 . Kills 30 | . . . . . . 4 . 9 . 1 . . 16 . Allies Corrupted 2 | . . . . . . 1 . . . 1 . . . . Allies Melted . | . . . . . . . . . . . . . . . Intel | -11 -10 -10 -9 -9 -9 -8 -8 -8 -8 -7 -7 -7 -7 -7 ------- Run | Jun Mat Min Mat Min Exi Min Mat Gar Mat Fac Low Low Zio Dee Robot Analysis Total 7 | . 2 . 1 . . . . . 4 . . . . . Derelict Logs Recovered 7 | . . 1 . 1 . . . . . . 2 1 2 . Drone Launches . | . . . . . . . . . . . . . . . Drone Recoveries . | . . . . . . . . . . . . . . . Exploration | -11 -10 -10 -9 -9 -9 -8 -8 -8 -8 -7 -7 -7 -7 -7 ------------- Run | Jun Mat Min Mat Min Exi Min Mat Gar Mat Fac Low Low Zio Dee Turns Passed 32239 | 27 1351 1316 2789 1429 1345 1585 1190 3344 790 4557 1689 2083 8166 578 Spaces Moved 16568 | 9 676 606 1090 582 557 634 396 1459 371 5447 918 994 2464 365 Core . | . . . . . . . . . . . . . . . Treads 6317 | . . 292 1090 582 557 634 396 621 . 90 1 64 1990 . Legs 1837 | 9 676 314 . . . . . . . . . . 473 365 Wheels 3640 | . . . . . . . . 838 371 584 917 930 . . Hover . | . . . . . . . . . . . . . . . Flight 4774 | . . . . . . . . . . 4773 . . 1 . Fastest Speed 24 | 120 120 160 160 240 240 240 240 150 150 24 145 175 140 140 Average Speed 149 | 120 136 184 195 240 240 240 240 188 150 43 155 192 236 140 Slowest Speed 1440 | 120 190 240 240 240 240 240 240 320 225 855 323 322 1440 140 Overloaded Moves . | . . . . . . . . . . . . . . . Propulsion Burnouts . | . . . . . . . . . . . . . . . Robots Hopped 26 | . . . . . . . . . . 26 . . . . Cave-ins Triggered . | . . . . . . . . . . . . . . . Exploration Rate (%) 77 | 2 95 90 91 97 91 98 43 92 50 88 97 98 92 43 Regions Visited 14 Branch Regions 8 Pre-discovered Areas 7 | . 2 . 1 . . . . . . . 1 . 3 . Known Exits Taken 3 | . . 1 . . . . 1 . . 1 . . . . Unknown Exits Taken 10 | 1 1 . 1 1 1 1 . . 1 . 1 1 1 . Scrap Searched 15 | . . 1 . 1 . 1 . . . . 6 2 4 . Spaces Dug 137 | . . . . . . . 10 7 2 83 18 14 3 . Terrain Destroyed 1344 | . . 17 90 . . 2 80 57 70 568 202 128 130 . Melee 51 | . . . . . . . . 2 . 46 . . 3 . Projectile 194 | . . 17 29 . . 2 14 9 42 55 10 7 9 . AOE 1099 | . . . 61 . . . 66 46 28 467 192 121 118 . Terrain Rammed . | . . . . . . . . . . . . . . . Walls Destroyed . | . . . . . . . . . . . . . . . Machines Disabled . | . . . . . . . . . . . . . . . Actions | -11 -10 -10 -9 -9 -9 -8 -8 -8 -8 -7 -7 -7 -7 -7 --------- Run | Jun Mat Min Mat Min Exi Min Mat Gar Mat Fac Low Low Zio Dee Total 22354 | 15 954 699 1512 616 567 678 532 1846 515 7228 1118 1131 4521 422 Wait 3756 | . 120 23 181 12 7 35 37 53 53 1239 117 87 1743 49 Move 16500 | 8 675 605 1089 581 556 633 395 1456 370 5394 917 993 2463 365 Hop 26 | . . . . . . . . . . 26 . . . . Pick Up 224 | 1 17 4 25 4 2 . 8 25 8 95 7 8 20 . Fast Attach 72 | . 6 2 6 1 . . 1 14 5 21 2 . 13 1 Attach 92 | . . 3 4 . . . 3 9 3 39 9 2 19 1 Detach 36 | . 1 1 1 . . . . 1 1 26 3 . 2 . Swap 235 | . 12 4 32 5 . . 15 21 12 64 20 20 30 . Drop 258 | . 25 3 41 10 2 . 10 31 14 88 7 3 24 . Fire 967 | 6 97 53 128 3 . 10 63 145 48 170 36 18 189 1 Melee 90 | . . . . . . . . 7 . 64 . . 14 5 Ram 2 | . . . . . . . . . 1 1 . . . . Kick 6 | . 1 1 . . . . . . . . . . 4 . Crush 6 | . . . 5 . . . . . . 1 . . . . Escape Stasis 37 | . . . . . . . . 37 . . . . . . Rewire 47 | . . . . . . . . 47 . . . . . . Trap . | . . . . . . . . . . . . . . . Miscellaneous . | . . . . . . . . . . . . . . . Route ------- -11/Junkyard -10/Materials (discovered 4 exits: *Mat x3 / [*Min]) -10/Mines (discovered 2 exits: *Mat x2) -9/Materials (discovered 6 exits: *Mat x3 / *Min / [*Sto x2]) -9/Mines (discovered 4 exits: *Mat x2 / *Exi / *Zio) -9/Exiles (discovered 2 exits: [*Min x2]) -8/Mines (discovered 2 exits: *Mat x2) -8/Materials (discovered 2 exits: *Fac / Gar) -8/Garrison (discovered 3 exits: *Mat x3) -8/Materials -7/Factory (discovered 6 exits: [*Fac x4] / *Low x2) -7/Lower Caves -7/Lower Caves (discovered 2 exits: [*Fac] / *Zio) -7/Zion (discovered 2 exits: [*Dee] / [*Pro]) -7/Deep Caves History --------- Turn | Location | Event 17 | -11/Junkyard | Discovered new exit (range 3) 28 | -11/Junkyard | Entered Materials 258 | -10/Materials | Discovered new exit (range 14) 332 | -10/Materials | Build established: Mutant 681 | -10/Materials | Core integrity fell below 50% 719 | -10/Materials | Central database locked down 719 | -10/Materials | Discovered new exit (range 16) 900 | -10/Materials | Discovered new exit (range 14) 1230 | -10/Materials | Discovered new exit (range 16) 1379 | -10/Materials | Entered Mines 1550 | -10/Mines | Discovered new exit (range 11) 2019 | -10/Mines | Assembled infested the area 2024 | -10/Mines | Assisted by a Guerilla fighting off Assembled 2047 | -10/Mines | Identified exit to Materials 2114 | -10/Mines | Lost 3 parts (1n1u1w) 2695 | -10/Mines | Entered Materials 2695 | -9/Materials | Evolved 2 slots: Propulsion x1, Utility x1 2762 | -9/Materials | Discovered new exit (range 10) 3182 | -9/Materials | Discovered new exit (range 8) 3467 | -9/Materials | Discovered new exit (range 12) 3642 | -9/Materials | Discovered new exit (range 8) 3744 | -9/Materials | Repaired Lgt. Treads 3772 | -9/Materials | Repaired Lgt. Treads 3979 | -9/Materials | Discovered new exit (range 16) 4418 | -9/Materials | Build established: Scavenger-Mutant 4819 | -9/Materials | Discovered new exit (range 16) 5095 | -9/Materials | First assault squad dispatched 5381 | -9/Materials | Build established: Mutant 5484 | -9/Materials | Entered Mines 5638 | -9/Mines | Joined a pair of Derelicts in attacking an 0b10 outpost 5758 | -9/Mines | Learned Materials emergency access door positions 5778 | -9/Mines | Met a Derelict testing a Signal Generator 5804 | -9/Mines | Found Signal Generator 5855 | -9/Mines | Discovered new exit (range 9) 6064 | -9/Mines | Deemed a non-threat by the Exiles lab entrance 6160 | -9/Mines | Received a Rocket Launcher from a helpful Derelict 6207 | -9/Mines | A Derelict revealed a hidden shortcut to a safe place 6399 | -9/Mines | Discovered new exit (range 9) 6603 | -9/Mines | Found a damaged Exp. Sensor Array with a note attached 6633 | -9/Mines | Found Prototype Device 6653 | -9/Mines | Build established: Scavenger-Mutant 6735 | -9/Mines | Assisted by bots powering up and referring to "LRC-V3" 6893 | -9/Mines | Discovered new exit (range 5) 6913 | -9/Mines | Entered Exiles 6913 | -9/Exiles | Found Exiles lab abandoned 6913 | -9/Exiles | Accompanied by 4 allies 6949 | -9/Exiles | Discovered new exit (range 15) 8229 | -9/Exiles | Discovered new exit (range 11) 8258 | -9/Exiles | Entered Mines 8258 | -8/Mines | Accompanied by 4 allies 8557 | -8/Mines | Discovered new exit (range 6) 8732 | -8/Mines | Discovered new exit (range 3) 9843 | -8/Mines | Entered Materials 9843 | -8/Materials | Accompanied by 2 allies 9843 | -8/Materials | Evolved 2 slots: Propulsion x1, Utility x1 10262 | -8/Materials | Discovered new exit (range 10) 10763 | -8/Materials | Garrison activated, responded to threat 10830 | -8/Materials | Identified exit to Garrison 11033 | -8/Materials | Entered Garrison 11086 | -8/Garrison | Learned Materials security intel 11096 | -8/Garrison | Triggered checkpoint 11281 | -8/Garrison | Triggered checkpoint 11282 | -8/Garrison | Triggered checkpoint 11420 | -8/Garrison | Lost 8 parts (5n2u1w) 11497 | -8/Garrison | Triggered checkpoint 11621 | -8/Garrison | Triggered checkpoint 11832 | -8/Garrison | Discovered new exit (range 10) 12029 | -8/Garrison | Discovered new exit (range 12) 12080 | -8/Garrison | Triggered checkpoint 12420 | -8/Garrison | Triggered checkpoint 13030 | -8/Garrison | Triggered checkpoint 13056 | -8/Garrison | Triggered checkpoint 13080 | -8/Garrison | Triggered checkpoint 13093 | -8/Garrison | Discovered new exit (range 12) 13205 | -8/Garrison | Garrison Relay disabled 13810 | -8/Garrison | P-60 Hacker assimilated allied Rogue 3b 13966 | -8/Garrison | Attempted to access garrison exit controls, blocked by remote lockdown 14256 | -8/Garrison | Attempted to access garrison exit controls, blocked by remote lockdown 14377 | -8/Garrison | Entered Materials 14915 | -8/Materials | Identified Exp. Sensor Array 14993 | -8/Materials | Core integrity fell below 50% 15089 | -8/Materials | High security lockdown imminent 15137 | -8/Materials | Discovered new exit (range 16) 15138 | -8/Materials | Lost 3 parts (1n2u) 15167 | -8/Materials | Entered Factory 15167 | -7/Factory | Evolved 2 slots: Propulsion x1, Utility x1 15567 | -7/Factory | First assault squad dispatched 15968 | -7/Factory | Identified exit to Lower Caves 16221 | -7/Factory | Discovered new exit (range 11) 16233 | -7/Factory | Build established: Sprinter 16419 | -7/Factory | Discovered new exit (range 8) 16465 | -7/Factory | Discovered new exit (range 13) 16625 | -7/Factory | Fabricated X-57 Shotgunner? 17032 | -7/Factory | Build established: Scout 17033 | -7/Factory | Fabricated Lrn. Missile Launcher? 17094 | -7/Factory | Fabricated Lrn. Missile Launcher? 17362 | -7/Factory | Discovered new exit (range 19) 17670 | -7/Factory | Fabricated Cargo Storage Unit? 17767 | -7/Factory | Repaired Gauss Cannon? 17874 | -7/Factory | Build established: Sprinter 18243 | -7/Factory | Fabricated Lrn. Missile Launcher? 18524 | -7/Factory | High security lockdown imminent 18571 | -7/Factory | Destroyed 10 combat bots 18604 | -7/Factory | High security lockdown engaged 18697 | -7/Factory | Build established: Hauler-Mutant 18827 | -7/Factory | Destroyed 16 combat bots 18891 | -7/Factory | System corruption reached 10% 18939 | -7/Factory | Destroyed 15 combat bots 19056 | -7/Factory | Destroyed 23 combat bots 19141 | -7/Factory | Core integrity fell below 50% 19190 | -7/Factory | Destroyed 20 combat bots 19191 | -7/Factory | Lost 3 parts (1n1u1w) 19239 | -7/Factory | Sterilization system engaged 19239 | -7/Factory | Non-combat units ordered to evacuate 19253 | -7/Factory | Destroyed 11 combat bots 19339 | -7/Factory | Combat units ordered to evacuate 19539 | -7/Factory | Ambient heat levels rising (+10) 19689 | -7/Factory | Ambient heat levels rising (+10) 19724 | -7/Factory | Entered Lower Caves 19731 | -7/Lower Caves | Met a Warlord Commander 19732 | -7/Lower Caves | Learned location of Warlord (-4) 19739 | -7/Lower Caves | Found Encrypted Comm Array 20045 | -7/Lower Caves | Learned Factory emergency access door positions 20210 | -7/Lower Caves | Attracted the attention of an 0b10 base 20244 | -7/Lower Caves | Destroyed 14 combat bots 20272 | -7/Lower Caves | Learned Research terminal intel 20272 | -7/Lower Caves | Learned Factory emergency access door positions 20272 | -7/Lower Caves | Learned 8 Research zone layouts 20272 | -7/Lower Caves | Learned location of 1 exit from Proximity Caves 20542 | -7/Lower Caves | Encountered a Warlord checkpoint 20954 | -7/Lower Caves | Attracted the attention of an 0b10 checkpoint 21092 | -7/Lower Caves | Discovered new exit (range 7) 21215 | -7/Lower Caves | Learned Factory emergency access door positions 21413 | -7/Lower Caves | Entered another Lower Caves area 21441 | -7/Lower Caves | Encountered a Warlord checkpoint 21879 | -7/Lower Caves | Discovered new exit (range 8) 23353 | -7/Lower Caves | Discovered new exit (range 15) 23496 | -7/Lower Caves | Entered Zion 23713 | -7/Zion | System corruption cleaned by Quarantine Array 23802 | -7/Zion | Discovered new exit (range 16) 24084 | -7/Zion | Given A8's code to call for help 24586 | -7/Zion | Found CR-A16's Pointy Stick 24793 | -7/Zion | Discovered new exit (range 4) 24796 | -7/Zion | Saw the warning signs outside the Deep Caves entrance 24888 | -7/Zion | Learned Factory stockpile data 25697 | -7/Zion | Given the Hacking Drone Bay 26370 | -7/Zion | Enhanced Grunt warped into view, answering call for help 26373 | -7/Zion | Enhanced Grunt warped into view, answering call for help 26588 | -7/Zion | Build established: Scavenger-Mutant 29401 | -7/Zion | Imprinted 29404 | -7/Zion | Declared Zion's savior 29418 | -7/Zion | Attacked by Zionites 29500 | -7/Zion | Extracted access codes from Imprinter's data core 29991 | -7/Zion | Spotted 7Y-53G(B) 30173 | -7/Zion | Destroyed 7Y-53G(B) 30179 | -7/Zion | Lost 6 parts (3n3u) 30199 | -7/Zion | Spotted NX-PAG(B) 30328 | -7/Zion | Destroyed NX-PAG(B) 30689 | -7/Zion | Core integrity fell below 20% 31466 | -7/Zion | Lost 6 parts (2p2n1u1w) 31557 | -7/Zion | Lost 5 parts (1n2u2w) 31662 | -7/Zion | Entered Deep Caves 32031 | -7/Deep Caves | Z-Facility disabled 32240 | -7/Deep Caves | Destroyed self via exploding Z-Power Last Messages --------------- 32044_ Sneak attack on BC-ZG6(o). 32044_ Destroyed Lgt. Ion Engine. 32044_ Destroyed Datajack. 32044_ Destroyed Hover Unit. 32044_ Destroyed Mak. Hacking Suite. 32044_ BC-ZG6(o) system corrupted by crushing effect. 32044_ Hover Unit fried. 32044_ BC-ZG6(o) destroyed. 32047_ Acquired 7 matter. 32082_ System corrupted: Energy discharge (-100). 32120_ System corrupted: Energy discharge (-94). 32137_